bitfinex-derivatives/quotes_SOLF0:USTF0_20250706
["timestamp","ask_amount","ask_price","bid_price","bid_amount"]
[1751783497757,5.05633522,147.77,147.76,9.10877193]
[1751783499764,5.0670661,147.77,147.76,9.10877193]
[1751783503961,9.49015718,147.83,147.8,6.7639]
[1751783504169,13.91311742,147.82,147.8,9.10667193]
[1751783504357,8.78665485,147.81,147.8,2.34277193]
[1751783504557,13.9129789,147.81,147.8,2.34277193]
[1751783504767,8.78665485,147.81,147.8,2.34277193]
[1751783505162,8.78665485,147.81,147.79,6.7643]
[1751783505365,6.7628,147.83,147.8,2.34277193]
[1751783505565,13.83029379,147.82,147.8,2.34277193]
[1751783505765,8.78499655,147.81,147.8,2.34277193]
[1751783507171,6.7628,147.83,147.8,2.34277193]
[1751783507367,13.83471428,147.82,147.8,9.10697193]
[1751783507567,8.79127137,147.81,147.8,6.7642]
[1751783507773,8.79127137,147.81,147.8,9.10697193]
[1751783513975,11.35687193,147.84,147.8,9.10697193]
[1751783514168,13.87858974,147.83,147.8,9.10697193]
[1751783514373,13.87858974,147.82,147.8,9.10697193]
[1751783514572,11.35687193,147.84,147.8,9.10697193]
[1751783514771,13.87733015,147.83,147.8,9.10697193]
[1751783514972,13.87733015,147.82,147.8,9.10697193]
[1751783515173,8.79703035,147.81,147.8,9.10697193]
[1751783516081,13.65481624,147.81,147.8,9.10697193]
[1751783517473,8.79703035,147.81,147.8,2.34277193]
[1751783517678,13.65437086,147.81,147.8,2.34277193]
[1751783518377,13.65429931,147.81,147.8,2.34277193]
[1751783519280,4.85726896,147.81,147.78,2.34277193]
[1751783519580,4.85726896,147.8,147.78,2.34277193]
[1751783519780,6.764,147.81,147.78,2.34277193]
[1751783519980,4.86838746,147.8,147.78,2.34277193]
[1751783520280,6.764,147.81,147.78,2.34277193]
[1751783520481,4.86832649,147.8,147.78,2.34277193]
[1751783520682,6.764,147.81,147.78,2.34277193]
[1751783520982,4.86832649,147.8,147.78,2.34277193]
[1751783521183,6.764,147.81,147.78,2.34277193]
[1751783521380,11.63246631,147.8,147.77,48.64277193]
[1751783521583,4.86883247,147.79,147.77,2.34277193]
[1751783521783,6.7642,147.8,147.77,2.34277193]
[1751783521985,4.86894775,147.79,147.77,9.10797193]
[1751783522284,6.7639,147.81,147.78,2.34277193]
[1751783522481,13.68388466,147.8,147.78,2.34277193]
[1751783522682,4.86915183,147.79,147.78,2.34277193]
[1751783522885,4.86915183,147.79,147.78,9.10787193]
[1751783526485,6.7635,147.82,147.79,6.7646]
[1751783526691,13.61021676,147.81,147.8,2.34277193]
[1751783528192,4.83406435,147.81,147.8,9.10697193]
[1751783529697,4.83406435,147.81,147.8,2.34277193]
[1751783530699,4.83406435,147.81,147.8,9.10697193]
[1751783533801,4.83406435,147.81,147.8,2.34277193]
[1751783534104,4.83406435,147.81,147.79,6.7644]
[1751783534301,4.83382166,147.8,147.79,2.34277193]
[1751783534698,4.83382166,147.8,147.78,9.10767193]
[1751783535000,4.83396614,147.79,147.78,2.34277193]
[1751783540701,6.7639,147.81,147.78,2.34277193]
[1751783540908,13.6331313,147.8,147.78,2.34277193]
[1751783541102,4.83572672,147.79,147.78,2.34277193]
[1751783544814,4.83572672,147.79,147.77,2.34277193]
[1751783545009,4.83781471,147.78,147.77,2.34277193]
[1751783549416,4.83781471,147.78,147.77,9.10827193]
[1751783551317,4.83781471,147.78,147.77,6.7655]
[1751783551518,4.83781471,147.78,147.77,9.10827193]
[1751783552917,6.7639,147.81,147.78,6.7651]
[1751783553111,13.58164139,147.8,147.78,9.10787193]
[1751783553311,6.7639,147.81,147.78,9.10787193]
[1751783553312,4.81608947,147.79,147.78,9.10787193]
[1751783553716,4.81608947,147.79,147.78,2.34277193]
[1751783554219,4.81608947,147.79,147.78,9.10787193]
[1751783557123,4.81608947,147.79,147.78,2.34277193]
[1751783564632,6.7638,147.81,147.78,2.34277193]
[1751783564831,13.56752878,147.8,147.78,2.34277193]
[1751783565032,4.80604356,147.79,147.78,2.34277193]
[1751783565731,4.80604356,147.79,147.77,2.34277193]
[1751783566029,6.7643,147.8,147.77,2.34277193]
[1751783566229,13.5591767,147.79,147.77,2.34277193]
[1751783566431,4.80636787,147.78,147.77,2.34277193]
[1751783567132,4.80636787,147.78,147.77,9.10827193]
[1751783567433,4.80630021,147.78,147.77,9.10827193]
[1751783573842,4.80630021,147.78,147.75,6.7664]
[1751783574035,4.56737193,147.8,147.75,2.34277193]
[1751783574338,20.78746144,147.79,147.76,2.34277193]
[1751783574539,13.56131996,147.78,147.76,2.34277193]
[1751783574734,4.81756249,147.77,147.76,2.34277193]
[1751783575734,4.81756249,147.77,147.73,46.22]
[1751783575936,4.81756249,147.76,147.74,2.34277193]
[1751783576132,4.81756249,147.75,147.74,2.34277193]
[1751783576641,4.81756249,147.75,147.73,55.33007193]
[1751783576936,2.34277193,147.77,147.73,55.33007193]
[1751783577134,4.81695736,147.76,147.73,55.33007193]
[1751783577439,4.81695736,147.75,147.73,55.33007193]
[1751783577640,6.766,147.76,147.73,55.33007193]
[1751783577837,4.81572055,147.75,147.73,55.33007193]
[1751783578034,6.766,147.76,147.73,55.33007193]
[1751783578238,4.81476244,147.75,147.73,9.11007193]
[1751783578538,6.766,147.76,147.73,2.34277193]
[1751783578739,4.81476244,147.75,147.73,2.34277193]
[1751783578940,6.766,147.76,147.73,2.34277193]
[1751783579741,6.766,147.76,147.72,10.78604119]
[1751783583041,6.766,147.76,147.73,6.7673]
[1751783583547,6.7658,147.77,147.74,2.34277193]
[1751783583740,4.76711041,147.76,147.74,2.34277193]
[1751783583940,6.7658,147.77,147.74,2.34277193]
[1751783584247,4.76711041,147.76,147.74,2.34277193]
[1751783584444,6.7658,147.77,147.74,2.34277193]
[1751783584643,4.75541062,147.76,147.74,2.34277193]
[1751783584948,6.7658,147.77,147.74,2.34277193]
[1751783585246,4.75541074,147.76,147.74,2.34277193]
[1751783585545,6.7658,147.77,147.74,2.34277193]
[1751783585847,4.75489534,147.76,147.74,2.34277193]
[1751783586145,6.7658,147.77,147.74,2.34277193]
[1751783586344,4.75444937,147.76,147.74,2.34277193]
[1751783586548,6.7658,147.77,147.74,2.34277193]
[1751783586747,4.75444937,147.76,147.74,2.34277193]
[1751783586947,6.7658,147.77,147.74,2.34277193]
[1751783587145,4.76352859,147.76,147.74,2.34277193]
[1751783587346,6.7658,147.77,147.74,2.34277193]
[1751783587546,4.76314509,147.76,147.74,2.34277193]
[1751783587743,6.7658,147.77,147.74,2.34277193]
[1751783587942,4.76314509,147.76,147.73,6.7672]
[1751783588147,6.7658,147.77,147.74,2.34277193]
[1751783588347,4.7628202,147.76,147.74,2.34277193]
[1751783588549,6.7658,147.77,147.74,2.34277193]
[1751783588749,4.7628202,147.76,147.74,2.34277193]
[1751783589044,6.766,147.76,147.73,9.10997193]
[1751783590050,9.10847193,147.77,147.73,9.10997193]
[1751783591853,6.7657,147.77,147.73,9.10997193]
[1751783592453,6.766,147.76,147.73,9.10997193]
[1751783592754,2.34277193,147.77,147.72,10.78604119]
[1751783592954,7.10459311,147.76,147.72,10.78604119]
[1751783593152,2.34277193,147.76,147.72,10.78604119]
[1751783593456,2.34277193,147.76,147.72,4.01834119]
[1751783593653,2.34277193,147.76,147.72,1.67556926]
[1751783593853,4.76205896,147.75,147.72,1.67556926]
[1751783594049,2.34277193,147.76,147.72,1.67556926]
[1751783594354,6.7673,147.74,147.72,1.67556926]
[1751783595152,6.7674,147.73,147.72,1.67556926]
[1751783596960,6.7679,147.72,147.69,52.9491]
[1751783597160,6.7679,147.72,147.69,55.29187193]
[1751783597361,6.7679,147.72,147.69,9.11187193]
[1751783599063,2.34277193,147.73,147.69,2.34277193]
[1751783599766,6.7686,147.71,147.69,2.34277193]
[1751783600758,2.34277193,147.72,147.69,2.34277193]
[1751783600961,6.768,147.72,147.69,9.11197193]
[1751783602069,6.768,147.72,147.69,2.34277193]
[1751783604169,2.34277193,147.72,147.68,2.34277193]
[1751783605564,6.7684,147.71,147.68,2.34277193]
[1751783606468,6.7684,147.71,147.68,9.11237193]
[1751783609471,6.7684,147.71,147.68,2.34277193]
[1751783610267,6.7688,147.7,147.68,2.34277193]
[1751783613879,6.7688,147.7,147.67,6.7701]
[1751783614077,6.7692,147.69,147.68,2.34277193]
[1751783614284,2.34277193,147.72,147.68,2.34277193]
[1751783614478,6.7691,147.7,147.68,2.34277193]
[1751783617282,6.7691,147.7,147.67,9.11287193]
[1751783618682,6.7693,147.69,147.66,6.7705]
[1751783618885,6.7693,147.69,147.67,2.34277193]
[1751783619581,6.7693,147.69,147.67,9.11287193]
[1751783620287,6.7689,147.7,147.67,9.11287193]
[1751783621183,6.7693,147.69,147.67,6.7701]
[1751783621383,6.7693,147.69,147.66,9.11317193]
[1751783622284,46.18,147.73,147.65,243.38277193]
[1751783622584,2.34277193,147.71,147.66,2.34277193]
[1751783623673,6.7692,147.69,147.67,2.34277193]
[1751783625177,6.7689,147.7,147.67,2.34277193]
[1751783626186,6.7693,147.69,147.67,2.34277193]
[1751783627986,6.7693,147.69,147.66,9.11327193]
[1751783628488,6.7693,147.69,147.67,2.34277193]
[1751783631594,6.7693,147.69,147.66,9.11327193]
[1751783634595,2.34277193,147.71,147.65,247.8308]
[1751783634897,2.34277193,147.7,147.65,243.40277193]
[1751783635098,2.34277193,147.7,147.66,2.34277193]
[1751783635698,6.7694,147.69,147.66,9.11327193]
[1751783637193,6.7688,147.7,147.67,9.11267193]
[1751783639797,55.65074145,147.73,147.65,241.06]
[1751783639798,55.65074145,147.73,147.69,2.34277193]
[1751783640001,13.62661584,147.72,147.69,2.34277193]
[1751783640204,13.62661584,147.71,147.69,2.34277193]
[1751783640401,6.7682,147.72,147.69,2.34277193]
[1751783640602,13.62672243,147.71,147.69,2.34277193]
[1751783640804,6.7682,147.72,147.69,2.34277193]
[1751783641105,20.39502243,147.71,147.69,2.34277193]
[1751783641402,6.7683,147.71,147.69,2.34277193]
[1751783641899,6.768,147.72,147.69,2.34277193]
[1751783642204,2.2663,147.75,147.71,2.34277193]
[1751783642506,13.62569001,147.74,147.73,9.11017193]
[1751783643003,8.94187301,147.74,147.73,2.34277193]
[1751783643204,13.62502793,147.74,147.73,2.34277193]
[1751783643593,8.94187301,147.74,147.73,2.34277193]
[1751783643798,13.62441567,147.74,147.73,2.34277193]
[1751783645106,4.68254266,147.74,147.73,2.34277193]
[1751783645298,13.63395131,147.74,147.73,2.34277193]
[1751783647205,4.68254266,147.74,147.73,2.34277193]
[1751783647705,6.7663,147.76,147.73,9.11007193]
[1751783648004,13.67097945,147.75,147.74,2.34277193]
[1751783648505,4.72209528,147.75,147.74,2.34277193]
[1751783649304,6.7663,147.76,147.74,2.34277193]
[1751783650105,4.74217465,147.75,147.74,2.34277193]
[1751783650303,6.7663,147.76,147.74,2.34277193]
[1751783650910,4.74141662,147.75,147.74,2.34277193]
[1751783651111,11.50791662,147.75,147.74,2.34277193]
[1751783652517,11.50791662,147.75,147.73,2.34277193]
[1751783652717,6.7665,147.75,147.73,2.34277193]
[1751783656910,2.34277193,147.77,147.71,6.7682]
[1751783657115,6.7671,147.74,147.72,2.34277193]
[1751783658521,6.7671,147.74,147.71,9.11097193]
[1751783660022,6.7666,147.75,147.73,2.34277193]
[1751783661423,6.7662,147.76,147.73,2.34277193]
[1751783663227,6.7665,147.75,147.73,2.34277193]
[1751783672532,6.7669,147.74,147.73,2.34277193]
[1751783673634,6.7677,147.73,147.72,2.34277193]
[1751783675535,6.7671,147.74,147.72,2.34277193]
[1751783680836,6.7671,147.74,147.72,9.11057193]
[1751783681343,6.7665,147.75,147.73,2.34277193]
[1751783682138,4.76750233,147.74,147.73,2.34277193]
[1751783683144,13.72303664,147.74,147.73,2.34277193]
[1751783684241,13.72303664,147.74,147.72,6.7678]
[1751783684538,6.7665,147.75,147.72,9.11057193]
[1751783684738,13.73468314,147.74,147.72,9.11057193]
[1751783684940,6.7665,147.75,147.72,9.11057193]
[1751783685141,13.73468314,147.74,147.72,9.11057193]
[1751783685340,6.7665,147.75,147.72,9.11057193]
[1751783685640,13.7348705,147.74,147.72,9.11057193]
[1751783685843,6.7665,147.75,147.72,9.11057193]
[1751783686035,13.7348705,147.74,147.72,9.11057193]
[1751783686230,6.7665,147.75,147.72,9.11057193]
[1751783686434,13.74228621,147.74,147.72,9.11057193]
[1751783686735,6.7665,147.75,147.72,9.11057193]
[1751783686736,4.77511407,147.73,147.72,9.11057193]
[1751783688544,4.77511407,147.73,147.72,6.7678]
[1751783688841,4.77511407,147.73,147.72,9.11057193]
[1751783689243,4.77729695,147.73,147.72,9.11057193]
[1751783692342,4.77776831,147.73,147.72,2.34277193]
[1751783694145,13.74778675,147.73,147.72,2.34277193]
[1751783695243,13.74795059,147.73,147.72,2.34277193]
[1751783695645,8.97001844,147.73,147.72,2.34277193]
[1751783695840,6.7665,147.75,147.72,9.11057193]
[1751783696044,4.7776978,147.74,147.73,2.34277193]
[1751783699148,6.7662,147.76,147.73,2.34277193]
[1751783699347,13.741749,147.75,147.74,2.34277193]
[1751783700949,20.508249,147.75,147.74,2.34277193]
[1751783701447,20.508249,147.75,147.73,2.34277193]
[1751783701748,13.75252563,147.74,147.73,2.34277193]
[1751783704752,13.75252563,147.74,147.72,9.11037193]
[1751783704952,6.7665,147.75,147.72,9.11037193]
[1751783705257,13.75273835,147.74,147.72,9.11037193]
[1751783705550,6.7665,147.75,147.72,9.11037193]
[1751783705750,13.74147908,147.74,147.72,9.11037193]
[1751783705943,6.7665,147.75,147.72,9.11037193]
[1751783706149,13.74147908,147.74,147.72,9.11037193]
[1751783706350,6.7665,147.75,147.72,9.11037193]
[1751783706550,13.74135623,147.74,147.72,9.11037193]
[1751783706751,6.7665,147.75,147.72,9.11037193]
[1751783706952,13.7413629,147.74,147.72,9.11037193]
[1751783707251,6.7665,147.75,147.72,9.11037193]
[1751783707451,13.74765188,147.74,147.72,9.11037193]
[1751783707652,6.7665,147.75,147.72,9.11037193]
[1751783707858,13.74765637,147.74,147.72,9.11037193]
[1751783708156,6.7665,147.75,147.72,9.11037193]
[1751783708456,13.74753989,147.74,147.72,9.11037193]
[1751783708657,6.7665,147.75,147.72,9.11037193]
[1751783708850,13.74756457,147.74,147.73,6.7674]
[1751783709258,13.74756457,147.74,147.73,9.11017193]
[1751783711460,4.78155471,147.74,147.73,9.11017193]
[1751783711861,13.74737786,147.74,147.73,9.11017193]
[1751783715259,4.78155471,147.74,147.73,9.11017193]
[1751783717975,48.581,147.79,147.75,6.7661]
[1751783718172,18.74892018,147.78,147.76,2.34277193]
[1751783718373,13.7436197,147.77,147.76,2.34277193]
[1751783721074,13.7436197,147.77,147.76,9.10877193]
[1751783721263,4.77991878,147.77,147.76,9.10877193]
[1751783721577,2.421,147.79,147.76,9.10877193]
[1751783721874,13.77200374,147.78,147.77,2.34277193]
[1751783724267,13.77200374,147.78,147.77,9.10827193]
[1751783724471,4.79792691,147.78,147.77,9.10827193]
[1751783727180,4.80484231,147.78,147.77,9.10827193]
[1751783729282,4.5769,147.8,147.77,9.10827193]
[1751783729484,13.78494336,147.79,147.78,2.34277193]
[1751783730284,13.78494336,147.79,147.78,9.10787193]
[1751783730488,4.80299397,147.79,147.78,9.10787193]
[1751783731378,46.1,147.82,147.78,9.10787193]
[1751783731574,25.57166961,147.81,147.79,2.34277193]
[1751783731779,13.78882747,147.8,147.79,2.34277193]
[1751783731987,13.78882747,147.8,147.79,9.10737193]
[1751783733387,4.80162888,147.8,147.79,9.10737193]
[1751783738986,4.81432981,147.8,147.79,9.10737193]
[1751783741391,14.09064139,147.84,147.8,6.764]
[1751783741589,13.85616171,147.83,147.8,9.10677193]
[1751783741891,4.85788639,147.82,147.8,2.34277193]
[1751783742093,6.7631,147.83,147.8,2.34277193]
[1751783742293,4.8576577,147.82,147.79,6.7645]
[1751783742489,6.7631,147.83,147.8,2.34277193]
[1751783742686,13.85303984,147.82,147.8,2.34277193]
[1751783742892,6.7631,147.83,147.8,2.34277193]
[1751783743189,13.84396905,147.82,147.8,2.34277193]
[1751783743391,6.7631,147.83,147.8,2.34277193]
[1751783743590,4.85598326,147.82,147.8,9.10687193]
[1751783743787,6.7631,147.83,147.8,9.10687193]
[1751783743989,4.85598326,147.82,147.8,9.10687193]
[1751783744189,2.344,147.84,147.81,2.34277193]
[1751783744387,2.344,147.84,147.83,2.34277193]
[1751783744590,16.18048901,147.84,147.83,2.34277193]
[1751783745694,16.18048901,147.84,147.83,9.10557193]
[1751783745893,16.18048901,147.84,147.83,2.34277193]
[1751783746292,11.32663485,147.84,147.83,2.34277193]
[1751783746492,2.344,147.84,147.83,2.34277193]
[1751783746795,52.8417,147.86,147.83,2.34277193]
[1751783746796,46.08,147.86,147.83,2.34277193]
[1751783746995,6.8261,147.89,147.85,2.34277193]
[1751783747195,13.81662061,147.88,147.86,2.34277193]
[1751783747496,6.8261,147.89,147.86,2.34277193]
[1751783747696,13.8103716,147.88,147.87,2.34277193]
[1751783748792,4.83606641,147.88,147.87,2.34277193]
[1751783748992,2.3545,147.89,147.87,2.34277193]
[1751783749190,2.3545,147.89,147.88,2.34277193]
[1751783749584,11.83531332,147.93,147.88,2.34277193]
[1751783749790,13.86070472,147.92,147.9,2.34277193]
[1751783750092,6.7584,147.93,147.9,2.34277193]
[1751783750288,8.9637822,147.92,147.9,2.34277193]
[1751783750496,55.24697193,147.94,147.9,2.34277193]
[1751783750697,20.60679606,147.93,147.9,2.34277193]
[1751783750894,8.9576578,147.92,147.91,2.34277193]
[1751783752593,11.4017,147.94,147.91,2.34277193]
[1751783752898,9.02050329,147.93,147.92,6.7587]
[1751783753099,9.02050329,147.93,147.85,46.06]
[1751783753300,4.6439,147.94,147.92,2.34277193]
[1751783753599,4.6439,147.94,147.93,2.34277193]
[1751783753798,13.66079409,147.94,147.93,2.34277193]
[1751783754294,4.6439,147.94,147.93,2.34277193]
[1751783754798,13.65389356,147.94,147.93,2.34277193]
[1751783756296,4.6439,147.94,147.93,2.34277193]
[1751783757095,6.757,147.96,147.93,2.34277193]
[1751783757297,48.2867,147.98,147.95,2.34277193]
[1751783757506,4.87010001,147.97,147.95,2.34277193]
[1751783757690,4.87010001,147.96,147.95,2.34277193]
[1751783758696,11.62700001,147.96,147.93,6.758]
[1751783758903,2.34277193,147.96,147.92,2.34277193]
[1751783759293,4.8679925,147.95,147.92,2.34277193]
[1751783759496,6.7576,147.95,147.92,2.34277193]
[1751783760801,6.7576,147.95,147.93,2.34277193]
[1751783766508,6.758,147.94,147.91,6.759]
[1751783766808,6.758,147.94,147.92,2.34277193]
[1751783767407,6.7575,147.95,147.92,9.10137193]
[1751783767608,4.96167955,147.94,147.92,9.10137193]
[1751783767810,6.7575,147.95,147.93,2.34277193]
[1751783768106,48.2867,147.98,147.94,2.34277193]
[1751783768303,14.01165814,147.97,147.95,2.34277193]
[1751783768507,4.96098945,147.96,147.95,2.34277193]
[1751783768911,11.71828945,147.96,147.94,2.34277193]
[1751783769208,4.96098945,147.95,147.94,2.34277193]
[1751783782922,11.71828945,147.95,147.94,2.34277193]
[1751783784829,11.71828945,147.95,147.92,6.7585]
[1751783785129,6.7573,147.95,147.94,2.34277193]
[1751783785428,11.74687241,147.95,147.94,2.34277193]
[1751783786126,7.33234434,147.95,147.85,46.0]
[1751783786326,2.34277193,147.91,147.88,2.34277193]
[1751783786733,6.7597,147.9,147.88,2.34277193]
[1751783787529,6.7597,147.9,147.89,2.34277193]
[1751783788630,11.75473474,147.9,147.89,2.34277193]
[1751783789629,4.99503474,147.9,147.89,2.34277193]
[1751783790229,4.99503474,147.9,147.88,9.10327193]
[1751783790530,4.99503474,147.89,147.88,9.10327193]
[1751783795139,4.5309,147.94,147.9,6.7592]
[1751783795341,19.18707107,147.93,147.92,2.34277193]
[1751783795535,19.18707107,147.93,147.91,2.34277193]
[1751783795732,14.01946714,147.92,147.91,2.34277193]
[1751783797244,4.95758034,147.92,147.91,2.34277193]
[1751783797444,14.02401274,147.92,147.91,2.34277193]
[1751783797847,14.01255587,147.92,147.91,2.34277193]
[1751783799245,4.94612347,147.92,147.91,9.10187193]
[1751783802746,9.46799652,147.99,147.91,9.10277193]
[1751783802947,9.0950518,147.98,147.97,2.34277193]
[1751783803344,9.0950518,147.98,147.97,9.09907193]
[1751783803545,9.09707193,148.02,147.97,9.09907193]
[1751783803740,13.95292,148.01,147.98,2.34277193]
[1751783803948,8.85438713,148.0,147.98,9.09867193]
[1751783804249,8.85438713,147.99,147.98,9.09867193]
[1751783804554,13.8289,148.03,147.99,6.7552]
[1751783804748,13.94706671,148.02,147.99,9.09797193]
[1751783804946,13.94706671,148.01,148.0,2.34277193]
[1751783805145,8.85065362,148.01,148.0,9.09777193]
[1751783805850,8.85065362,148.01,148.0,10.40325969]
[1751783806253,4.8342,148.03,148.01,6.7545]
[1751783806556,8.84198494,148.02,148.01,6.7545]
[1751783807553,8.84198494,148.02,148.0,10.40305969]
[1751783807755,4.8342,148.03,148.0,10.40305969]
[1751783807943,8.89168141,148.02,148.0,10.40305969]
[1751783808149,4.8342,148.03,148.0,10.40305969]
[1751783808352,8.88806191,148.02,148.0,10.40305969]
[1751783808554,4.8342,148.03,148.0,10.40305969]
[1751783808752,8.88806191,148.02,148.01,6.7546]
[1751783809257,2.4298,148.03,148.01,6.7546]
[1751783814055,6.7528,148.05,148.01,6.7546]
[1751783814260,8.90142555,148.04,148.01,6.7546]
[1751783814557,6.7528,148.05,148.01,6.7546]
[1751783814757,8.89920931,148.04,148.01,6.7546]
[1751783815062,6.7528,148.05,148.01,6.7546]
[1751783815657,8.90621542,148.04,148.01,6.7546]
[1751783815851,6.7528,148.05,148.01,6.7546]
[1751783816052,8.90621542,148.04,148.01,6.7546]
[1751783816253,6.7528,148.05,148.01,6.7546]
[1751783825664,6.7532,148.04,148.01,6.7546]
[1751783827766,6.7532,148.04,148.02,2.33475088]
[1751783827962,6.7529,148.05,148.02,2.33475088]
[1751783832868,4.76855088,148.06,148.02,2.33475088]
[1751783833468,2.33475088,148.05,147.94,62.0]
[1751783833767,2.33475088,148.04,147.99,2.33475088]
[1751783833967,2.33475088,148.04,148.0,2.33475088]
[1751783834462,6.7544,148.02,148.0,2.33475088]
[1751783835567,6.7546,148.01,148.0,2.33475088]
[1751783839470,6.7543,148.02,148.0,2.33475088]
[1751783847274,14.15679112,148.01,148.0,2.33475088]
[1751783848873,16.491542,148.01,147.97,2.33475088]
[1751783849070,18.61324513,148.0,147.97,2.33475088]
[1751783849275,18.61324513,147.99,147.97,2.33475088]
[1751783849577,18.61324513,147.98,147.97,2.33475088]
[1751783851086,18.61324513,147.98,147.97,9.09115088]
[1751783852185,13.39188124,147.98,147.97,9.09115088]
[1751783853085,13.39188124,147.98,147.97,2.33475088]
[1751783853588,8.93542723,147.98,147.97,2.33475088]
[1751783853780,13.81137453,147.98,147.97,2.33475088]
[1751783853986,13.81137453,147.98,147.96,6.7567]
[1751783854186,6.7552,148.0,147.97,2.33475088]
[1751783854383,18.97122331,147.99,147.97,2.33475088]
[1751783854583,13.80463109,147.98,147.97,2.33475088]
[1751783855489,13.80463109,147.98,147.97,9.09115088]
[1751783855691,4.87513222,147.98,147.97,9.09115088]
[1751783859695,4.87528342,147.98,147.97,9.09115088]
[1751783860098,9.0555,148.01,147.97,9.09115088]
[1751783860297,18.95686386,148.0,147.98,2.33475088]
[1751783860598,4.87517092,147.99,147.98,2.33475088]
[1751783862398,4.87517092,147.99,147.98,9.09065088]
[1751783865399,4.87458716,147.99,147.98,9.09065088]
[1751783869304,6.7548,148.01,147.98,9.09065088]
[1751783869505,13.78921662,148.0,147.98,9.09065088]
[1751783869702,4.88535664,147.99,147.98,9.09065088]
[1751783871103,4.8854389,147.99,147.98,9.09065088]
[1751783871303,6.7548,148.01,147.98,9.09065088]
[1751783871504,4.88524907,148.0,147.99,2.33475088]
[1751783875206,4.88524907,148.0,147.99,9.09025088]
[1751783875708,6.7538,148.03,147.99,9.09025088]
[1751783875902,13.80967328,148.02,148.0,2.33475088]
[1751783876103,4.89667087,148.01,148.0,2.33475088]
[1751783876304,4.89667087,148.01,148.0,9.08975088]
[1751783877006,6.7535,148.04,148.0,9.08975088]
[1751783877206,18.99713456,148.03,148.01,2.33475088]
[1751783877407,4.89620418,148.02,148.01,2.33475088]
[1751783879612,11.65030418,148.02,148.0,2.33475088]
[1751783879818,6.7541,148.02,148.0,2.33475088]
[1751783880115,6.7546,148.01,147.99,9.09005088]
[1751783880314,6.7546,148.01,147.99,2.33475088]
[1751783880512,4.90683146,148.0,147.99,2.33475088]
[1751783881211,2.33475088,148.04,147.99,9.09025088]
[1751783881510,19.02724419,148.03,148.0,2.33475088]
[1751783881711,13.82648478,148.02,148.0,2.33475088]
[1751783882014,4.90661419,148.01,148.0,9.08975088]
[1751783882208,6.7534,148.04,148.0,9.08975088]
[1751783882518,19.0253086,148.03,148.01,2.33475088]
[1751783882708,4.90594264,148.02,148.01,2.33475088]
[1751783882903,4.90594264,148.02,148.0,6.755]
[1751783883109,6.7539,148.03,148.01,2.33475088]
[1751783883310,6.7539,148.03,148.02,2.33475088]
[1751783883508,25.77714438,148.03,148.01,2.33475088]
[1751783883715,4.9055705,148.02,148.01,2.33475088]
[1751783889721,11.6596705,148.02,148.01,2.33475088]
[1751783890615,11.6596705,148.02,148.0,2.33475088]
[1751783890820,4.9055705,148.01,148.0,2.33475088]
[1751783891116,11.6601705,148.01,148.0,2.33475088]
[1751783891306,11.6601705,148.01,147.97,45.94]
[1751783891307,4.9055705,148.01,147.97,45.94]
[1751783891510,11.6608705,148.0,147.99,2.33475088]
[1751783891816,11.6608705,148.0,147.98,9.09065088]
[1751783892013,2.33475088,148.03,147.99,2.33475088]
[1751783892211,25.79883737,148.02,147.99,2.33475088]
[1751783892410,4.91646578,148.01,148.0,2.33475088]
[1751783893613,11.67106578,148.01,148.0,2.33475088]
[1751783895522,20.59800718,148.01,148.0,2.33475088]
[1751783896117,11.67106578,148.01,147.99,2.33475088]
[1751783896319,4.91646578,148.0,147.99,2.33475088]
[1751783898324,4.90714761,148.0,147.99,2.33475088]
[1751783898620,6.7547,148.01,147.99,2.33475088]
[1751783900322,6.7543,148.02,147.99,9.09025088]
[1751783900518,4.89651016,148.01,148.0,2.33475088]
[1751783901620,4.89651016,148.01,148.0,9.08975088]
[1751783903223,6.7538,148.03,148.0,9.08975088]
[1751783903427,4.89689912,148.02,148.01,2.33475088]
[1751783904228,4.89689912,148.02,148.0,6.755]
[1751783904426,6.7538,148.03,148.01,2.33475088]
[1751783904624,4.89708654,148.02,148.01,2.33475088]
[1751783904820,4.89708654,148.02,148.0,6.755]
[1751783905024,6.7538,148.03,148.0,9.08975088]
[1751783905322,4.89686349,148.02,148.0,9.08975088]
[1751783905524,6.7538,148.03,148.0,9.08975088]
[1751783905828,4.89715018,148.02,148.0,9.08975088]
[1751783906029,6.7538,148.03,148.0,9.08975088]
[1751783906223,4.9080293,148.02,148.0,9.08975088]
[1751783906528,6.7538,148.03,148.0,9.08975088]
[1751783906729,11.66255982,148.02,148.0,6.755]
[1751783906923,6.7542,148.02,147.99,9.09005088]
[1751783908328,4.90915087,148.01,147.99,9.09005088]
[1751783908529,6.7542,148.02,147.99,9.09005088]
[1751783908722,4.90915087,148.01,147.99,9.09005088]